Cogmind - Beta 14 @@@ ROGUE MODE // 2024.08.09 @ 08:13:18 // Winter2019/RPGLIKE Player: Haldron Result: Core destroyed Performance ------------- Evolutions (7) 3500 Regions Visited (10) 2000 Robots Destroyed (107) 535 Value Destroyed (4376) 4376 Prototype IDs (26) 520 Alien Tech Used (0) 0 Bonus (3522) 3522 TOTAL SCORE: 14453 Bonus ------- High Alert Combat Kills 228 Follower Combat Kills 97 Registered with UFD 300 Met Warlord at Base 500 MAIN.C Attacked Warlord 500 Warlord Defense Kills 2210 Friendly Fire -313 Cogmind --------- Core Integrity 0/900 Matter 340/350 Energy 669/1005 System Corruption 0% Temperature Critical (506) Movement Treading (240) Ox1 Location -3/Research Parts ------- > --- POWER (2) -------- Neutrino Core Particle Reactor > --- PROPULSION (2) --- Heavy Treads > --- UTILITY (5) ------ Energy Well Experimental Sensor Array Advanced Signal Interpreter Hardened Heavy Armor Plating > --- WEAPON (6) ------- BFG-9k Vortex Edition > --- INVENTORY (6) ---- Neutrino Core Advanced Power Amplifier Advanced Power Amplifier Advanced Thermal Generator Improved Medium Armor Plating Companion Sword Peak State ------------ > --- POWER ------------ Neutrino Core Particle Reactor > --- PROPULSION ------- Heavy Treads > --- UTILITY ---------- Energy Well Experimental Sensor Array Advanced Signal Interpreter Hardened Heavy Armor Plating > --- WEAPON ----------- BFG-9k Vortex Edition > --- INVENTORY -------- Neutrino Core Advanced Power Amplifier Advanced Power Amplifier Advanced Thermal Generator Improved Medium Armor Plating Companion Sword [Rating: 134] Favorites ----------- Power Neutrino Core Engine Improved Deuterium Engine Power Core Neutrino Core Reactor Particle Reactor Propulsion Armored Wheel Treads Heavy Treads Wheel Armored Wheel Flight Unit Flight Unit Utility Advanced Signal Interpreter Device Experimental Sensor Array Storage Energy Well Processor Advanced Signal Interpreter Protection Improved Light Armor Plating Weapon Powered Cannon Energy Gun Overtuned Pulse Rifle Energy Cannon Powered Cannon Ballistic Gun Assault Rifle Launcher Heavy Rocket Launcher Impact Weapon Mace Slashing Weapon Companion Sword Build | -11 -10 -10 -7 -7 -5 -5 -5 -4 -4 -3 ------- Run | Yrd Mat Sub Rec Scr Fac Upp War Pro Fac Res Slots Evolved 11 | 2 1 1 2 . 1 . . 1 2 1 Power 1 | . . . . . . . . . . 1 Propulsion 1 | . . 1 . . . . . . . . Utility 4 | 1 . . 2 . 1 . . . . . Weapon 5 | 1 1 . . . . . . 1 2 . Parts Attached 73 | 6 20 8 6 10 5 . 12 1 1 4 Power 12 | 1 5 . 2 . 2 . . . . 2 Engine 3 | 1 1 . 1 . . . . . . . Core 8 | . 4 . 1 . 2 . . . . 1 Reactor 1 | . . . . . . . . . . 1 Propulsion 11 | 1 4 2 . 3 . . 1 . . . Treads 1 | . . . . . . . 1 . . . Leg . | . . . . . . . . . . . Wheel 9 | 1 3 2 . 3 . . . . . . Hover . | . . . . . . . . . . . Flight 1 | . 1 . . . . . . . . . Utility 24 | 2 5 1 4 4 1 . 7 . . . Device 11 | 2 2 . 2 3 . . 2 . . . Storage 1 | . . . . . . . 1 . . . Processor 6 | . 2 . 1 1 1 . 1 . . . Hackware . | . . . . . . . . . . . Protection 6 | . 1 1 1 . . . 3 . . . Artifact . | . . . . . . . . . . . Weapon 26 | 2 6 5 . 3 2 . 4 1 1 2 Energy Gun 4 | . 2 1 . 1 . . . . . . Energy Cannon 4 | . . 1 . . . . 1 . 1 1 Ballistic Gun 9 | 2 4 3 . . . . . . . . Ballistic Cannon . | . . . . . . . . . . . Launcher 2 | . . . . . 1 . 1 . . . Special Weapon . | . . . . . . . . . . . Impact Weapon 1 | . . . . . . . . 1 . . Slashing Weapon 6 | . . . . 2 1 . 2 . . 1 Piercing Weapon . | . . . . . . . . . . . Special Melee Weapon . | . . . . . . . . . . . Unidentified Prototypes 3 | . . . . 1 . . 1 . 1 . Parts Lost 1 | . . . . . 1 . . . . . Power 1 | . . . . . 1 . . . . . Propulsion . | . . . . . . . . . . . Utility . | . . . . . . . . . . . Weapon . | . . . . . . . . . . . Highest Loss Streak 1 | . . . . . 1 . . . . . To Critical Strikes . | . . . . . . . . . . . Average Slot Usage (%) 82 | . 96 84 77 81 88 90 84 74 68 52 Engine 3 | . 7 . 7 9 . . . . . . Core 6 | . 7 12 2 . 11 9 9 8 7 10 Treads 1 | . . . . . . . 3 8 7 6 Wheel 13 | . 12 16 20 18 16 18 11 . . . Device 12 | . 15 2 14 18 16 18 15 8 7 6 Storage 1 | . . . . . . . 2 8 7 6 Processor 11 | . 11 12 10 9 15 18 15 8 7 6 Protection 7 | . 3 9 3 9 8 9 9 8 7 6 Energy Gun 2 | . 5 6 . 5 . . . . . . Energy Cannon 7 | . . 7 10 9 8 9 9 8 7 5 Ballistic Gun 7 | . 29 15 10 2 . . . . . . Slashing Weapon 2 | . . . . 1 8 9 5 8 6 . Peak Build Rating 134 | 8 9 23 31 51 63 57 72 74 125 134 Average Rating 42 | 3 7 18 26 39 58 57 61 73 86 125 On Entrance 46 | . 8 9 23 31 51 57 57 72 74 125 Naked Turns . | . . . . . . . . . . . Heaviest Build 108 | 11 15 19 27 35 52 38 62 55 90 108 Greatest Support 75 | 10 21 31 31 31 29 29 75 75 75 75 Greatest Overweight (x) 3 | 1 3 . . 1 1 1 1 . 1 1 Average Overweight (x) . | . . . . . 1 1 . . . . Largest Inventory Capacity 6 | 3 3 3 3 3 3 3 6 6 6 6 Average Capacity 3 | 2 3 3 3 3 3 3 4 6 6 6 Most Carried 6 | 3 3 3 3 3 3 3 6 6 6 6 Average Carried 3 | 1 2 2 2 2 3 3 4 6 5 5 Final Capacity 6 | 3 3 3 3 3 3 3 6 6 6 6 Final Carried 6 | 3 3 3 3 3 3 3 6 6 4 6 Class Distribution -------------------- 25% | Mutant 21% | Commander-Tank 19% | Tank 10% | Gladiator 8% | Scavenger-Gunner 3% | Commander-Mutant Dominant Class ---------------- Mutant | -10/Materials Tank | -10/Subcaves Scavenger-Gunner | -7/Recycling Commander-Tank | -7/Scraptown Mutant | -5/Factory Mutant | -5/Upper Caves Mutant | -5/Warlord Gladiator | -4/Proximity Caves Gladiator | -4/Factory Scavenger-Executioner | -3/Research Resources | -11 -10 -10 -7 -7 -5 -5 -5 -4 -4 -3 ----------- Run | Yrd Mat Sub Rec Scr Fac Upp War Pro Fac Res Matter Collected 1685 | 284 680 159 87 100 128 . 161 46 10 30 Remotely . | . . . . . . . . . . . Salvage Created 4731 | 83 656 720 711 . 1253 . 815 224 220 49 Parts 231 | 5 45 33 27 . 61 . 36 9 12 3 Haulers Intercepted 4 | . 2 . . . 2 . . . . . Recyclers Shooed 2 | . 1 . 1 . . . . . . . Parts Field Recycled . | . . . . . . . . . . . Retrieved Matter . | . . . . . . . . . . . Parts Self-Destructed 16 | . . 7 . . . . . 9 . . Prevented . | . . . . . . . . . . . Kills | -11 -10 -10 -7 -7 -5 -5 -5 -4 -4 -3 ------- Run | Yrd Mat Sub Rec Scr Fac Upp War Pro Fac Res Combat Hostiles Destroyed 88 | . 13 13 8 . 22 . 19 2 7 4 Melee 2 | . . . . . 1 . . . . 1 Guns 20 | . 13 7 . . . . . . . . Cannons 52 | . . 6 8 . 13 . 14 1 7 3 AOE 7 | . . . . . 6 . 1 . . . Classes Destroyed 19 | 2 4 3 2 . 4 . 4 . . . Builder 3 | . . . . . 3 . . . . . Tunneler 1 | 1 . . . . . . . . . . Hauler 4 | . 2 . . . 2 . . . . . Recycler 5 | 1 1 . 2 . 1 . . . . . Turret 2 | . . 2 . . . . . . . . Watcher 3 | . 3 . . . . . . . . . Swarmer 23 | . 3 1 3 . 7 . 1 . 4 4 Grunt 31 | . 10 1 . . 10 . 10 . . . Brawler 1 | . . . . . 1 . . . . . Duelist 3 | . . . 1 . 1 . 1 . . . Protector 2 | . . . . . 1 . 1 . . . Sentry 5 | . . . 4 . . . . . 1 . Demolisher 2 | . . . . . . . 2 . . . Specialist 1 | . . . . . . . 1 . . . Programmer 7 | . . . . . 3 . 1 1 2 . Behemoth 2 | . . . . . . . 1 1 . . Striker 1 | . . . . . . . 1 . . . Cobbler 1 | . . 1 . . . . . . . . Subdweller 11 | . . 11 . . . . . . . . Best Kill Streak 10 | 1 3 3 3 . 10 . 6 1 4 4 Combat Bots Only 10 | . 3 3 2 . 10 . 6 1 4 4 Max Kills in Single Turn 5 | 1 1 1 1 . 5 . 1 1 1 1 Gunslinging . | . . . . . . . . . . . Exploded 4 | . . . . . 4 . 1 . . . Melee 1 | . . . . . 1 . . . . 1 Uniques/NPCs Destroyed . | . . . . . . . . . . . Combat | -11 -10 -10 -7 -7 -5 -5 -5 -4 -4 -3 -------- Run | Yrd Mat Sub Rec Scr Fac Upp War Pro Fac Res Hostile Shots Fired 454 | . 58 82 63 . 84 . 85 25 27 30 Missed 145 | . 19 34 21 . 21 . 21 13 8 8 Damage Taken 4646 | . 459 788 227 . 951 . 992 262 316 651 Core 3379 | . 375 597 162 . 689 . 715 177 181 483 Absorbed by Shields 918 | . . . 85 . 332 . 501 . . . Reduced by Siege Mode 5 | . . . . . . . 5 . . . Redirected to Core 2608 | . 268 448 130 . 535 . 647 129 169 282 Ignored by Resistances 119 | . . 29 18 . 53 . 13 2 4 . Regen/Repaired (Parts) 57 | . 26 . . . . . 31 . . . Core Remaining (%) 67 | 100 . . . 71 . . . 59 41 . Volleys Fired 295 | 4 56 67 29 . 54 . 64 3 14 4 Largest 3 | 2 3 3 2 . 1 . 2 1 1 1 Hottest 300 | 40 80 110 65 . 40 . 120 40 300 300 Shots Fired 428 | 8 114 127 38 . 54 . 65 4 14 4 Gun 230 | 8 114 99 9 . . . . . . . Cannon 192 | . . 28 29 . 52 . 61 4 14 4 Launcher 6 | . . . . . 2 . 4 . . . Special . | . . . . . . . . . . . Kinetic 169 | 8 110 42 9 . . . . . . . Thermal 247 | . 4 85 29 . 52 . 61 4 12 . Explosive 6 | . . . . . 2 . 4 . . . Electromagnetic . | . . . . . . . . . . . Entropic 6 | . . . . . . . . . 2 4 Robot Hit Streak 20 | 3 9 15 20 . 7 . 12 7 10 11 Robot Miss Streak 3 | 1 2 3 1 . 2 . 2 . 2 1 Penetration Max . | . . . . . . . . . . . Secondary Targets 3 | . 1 2 . . . . . . . . Max Gunslinging Chain 1 | . 1 1 . . . . . . . . Shots Hit Robots 289 | 6 77 72 29 . 39 . 36 12 10 8 Core Hits 157 | 3 35 27 16 . 39 . 26 2 6 3 Critical Kills 9 | . . 1 1 . 2 . 4 1 . . Critical Parts Destroyed . | . . . . . . . . . . . Critical Strikes 13 | . . 2 1 . 2 . 4 1 1 2 Meltdown 8 | . . . 1 . 2 . 4 1 . . Destroy 2 | . . 2 . . . . . . . . Sunder 3 | . . . . . . . . . 1 2 Melee Attacks 31 | . . . . . 9 . 1 9 2 10 Impact . | . . . . . . . . . . . Slashing 31 | . . . . . 9 . 1 9 2 10 Piercing . | . . . . . . . . . . . Sneak Attacks . | . . . . . . . . . . . Combat Hostiles . | . . . . . . . . . . . Follow-up Attacks . | . . . . . . . . . . . Damage Inflicted 12820 | 75 932 1600 1438 . 3127 . 2002 697 1232 1717 Guns 1824 | 75 932 731 86 . . . . . . . Cannons 8700 | . . 869 1345 . 1747 . 1815 184 1232 1508 Explosions 1372 | . . . . . 1185 . 187 . . . Melee 917 | . . . . . 195 . . 513 . 209 Ramming 7 | . . . 7 . . . . . . . Kinetic 1358 | 75 889 308 86 . . . . . . . Thermal 6941 | . 43 1292 1345 . 1879 . 1815 184 383 . Explosive 1102 | . . . . . 915 . 187 . . . Electromagnetic 138 | . . . . . 138 . . . . . Impact . | . . . . . . . . . . . Slashing 917 | . . . . . 195 . . 513 . 209 Piercing . | . . . . . . . . . . . Entropic 2357 | . . . . . . . . . 849 1508 Highest Corruption 3 | . . . . . 1 1 2 3 . . Average Corruption 1 | . . . . . 1 1 1 2 . . Corruption Purged . | . . . . . . . . . . . Corruption Blocked . | . . . . . . . . . . . Effects 17 | . . . . . 3 3 7 4 . . Message Errors 6 | . . . . . 2 1 2 1 . . Matter Fused 3 | . . . . . . 1 2 . . . Heat Flow Errors 1 | . . . . . . 1 . . . . Energy Discharges 1 | . . . . . . . . 1 . . Data Loss (minor) 1 | . . . . . . . 1 . . . Data Loss (major) 1 | . . . . . . . . 1 . . Misfires 1 | . . . . . . . . 1 . . Alerts 3 | . . . . . 1 . 2 . . . Overload Shots 1 | . . . . . . . 1 . . . Overflow Damage 1333 | . . 3 146 . 94 . 71 174 360 485 Projectiles 1089 | . . 3 146 . 66 . 71 . 360 443 Explosions 28 | . . . . . 28 . . . . . Melee 216 | . . . . . . . . 174 . 42 Knockbacks . | . . . . . . . . . . . Impact . | . . . . . . . . . . . Kinetic . | . . . . . . . . . . . Secondary . | . . . . . . . . . . . Self-Inflicted Damage 142 | . . . 3 . 139 . . . . . Shots 4 | . . . . . 4 . . . . . Rammed 2 | . . . 2 . . . . . . . Targets Rammed 2 | . . . 2 . . . . . . . Kicked . | . . . . . . . . . . . Crushed . | . . . . . . . . . . . Highest Temperature 805 | . 8 . 2 . 12 110 83 6 273 805 Average Temperature 81 | . 3 . 2 . 5 65 8 3 83 526 Received Heat Transfer 753 | . 225 150 75 . 223 . 53 9 18 . Effects 10 | . . . . . . . . . . 10 Shutdowns 2 | . . . . . . . . . . 2 Damage (minor) 1 | . . . . . . . . . . 1 Damage (major) 6 | . . . . . . . . . . 6 Damage (core) 1 | . . . . . . . . . . 1 Siege Activations 3 | . . . . . . . 2 . 1 . Total Turns 20 | . . . . . . . 10 . 10 . Longest Duration 10 | . . . . . . . 7 . 10 . Robots Corrupted . | . . . . . . . . . . . Combat Hostiles . | . . . . . . . . . . . Parts Fried . | . . . . . . . . . . . Impact Corruptions . | . . . . . . . . . . . Robots Melted 8 | . . . 1 . 2 . 4 1 . . Combat Hostiles 8 | . . . 1 . 2 . 4 1 . . Parts Melted 15 | . . 1 . . 3 . 9 2 . . Heat Transferred 1000 | . 100 800 . . 100 . . . . . Parts Sabotaged . | . . . . . . . . . . . Parts Stolen . | . . . . . . . . . . . Parts Stripped . | . . . . . . . . . . . Power Chain Reactions 2 | . . . . . 2 . . . . . Alert | -11 -10 -10 -7 -7 -5 -5 -5 -4 -4 -3 ------- Run | Yrd Mat Sub Rec Scr Fac Upp War Pro Fac Res Peak Influence 949 | 10 242 . 122 . 949 . . . 113 246 Initial 50 | . 6 . . . . . . . . 50 Average 120 | 4 94 . 32 . 467 . . . 42 71 Maximum Alert Level 3 | . 1 . . . 3 . . . . 1 Low Security (%) 88 | 100 92 . 100 . 39 . . . 100 96 Level 1 3 | . 7 . . . 7 . . . . 3 Level 2 3 | . . . . . 23 . . . . . Level 3 4 | . . . . . 30 . . . . . Level 4 . | . . . . . . . . . . . Level 5 . | . . . . . . . . . . . High Security . | . . . . . . . . . . . Max Security . | . . . . . . . . . . . Squads Dispatched 13 | . 3 . . . 8 . . . 2 . Investigation 4 | . 2 . . . 1 . . . 1 . Extermination 3 | . . . . . 2 . . . 1 . Reinforcement 4 | . 1 . . . 3 . . . . . Assault 2 | . . . . . 2 . . . . . Garrison . | . . . . . . . . . . . Intercept . | . . . . . . . . . . . Searches Triggered . | . . . . . . . . . . . Construction Impeded . | . . . . . . . . . . . Haulers Reinforced 2 | . . . . . 2 . . . . . Active Scanning Responses . | . . . . . . . . . . . Cargo Convoy Interrupts . | . . . . . . . . . . . Stealth | -11 -10 -10 -7 -7 -5 -5 -5 -4 -4 -3 --------- Run | Yrd Mat Sub Rec Scr Fac Upp War Pro Fac Res Distress Signals 3 | . . . . . 2 . . . 1 . Communications Jammed . | . . . . . . . . . . . Distress Signals . | . . . . . . . . . . . Times Spotted 155 | . 24 24 4 . 27 . 55 5 8 8 Peak Tracking Total 11 | . 4 5 1 . 7 . 11 3 4 4 Tactical Retreats 10 | . 1 4 . . 1 . 2 . . 2 Traps | -11 -10 -10 -7 -7 -5 -5 -5 -4 -4 -3 ------- Run | Yrd Mat Sub Rec Scr Fac Upp War Pro Fac Res Traps Triggered 4 | . 3 . . . 1 . . . . . Indirectly . | . . . . . . . . . . . Trap Hack Attempts . | . . . . . . . . . . . Triggered . | . . . . . . . . . . . Disarmed . | . . . . . . . . . . . Reprogrammed . | . . . . . . . . . . . Reused . | . . . . . . . . . . . Traps Extracted . | . . . . . . . . . . . Installed . | . . . . . . . . . . . Triggered 15 | . . . . . . . 15 . . . Machines | -11 -10 -10 -7 -7 -5 -5 -5 -4 -4 -3 ---------- Run | Yrd Mat Sub Rec Scr Fac Upp War Pro Fac Res Machines Disabled 19 | . . 1 . . 17 . . . 1 . Max in Single Turn 5 | . . 1 . . 5 . . . 1 . Machines Repaired . | . . . . . . . . . . . Machines Dismantled . | . . . . . . . . . . . Machines Sabotaged . | . . . . . . . . . . . Overloaded Fab Kills . | . . . . . . . . . . . Hacking | -11 -10 -10 -7 -7 -5 -5 -5 -4 -4 -3 --------- Run | Yrd Mat Sub Rec Scr Fac Upp War Pro Fac Res Machines Accessed 27 | . 8 2 4 8 . . 1 . 2 2 Terminals 10 | . 6 . 2 . . . . . 1 1 Fabricators . | . . . . . . . . . . . Repair Stations 2 | . 1 . . . . . . . . 1 Recycling Units 2 | . 1 . . . . . . . 1 . Scanalyzers . | . . . . . . . . . . . Garrison Access . | . . . . . . . . . . . Total Hacks 83 | . 25 5 13 34 . . 1 . 3 2 Successful 66 | . 12 5 11 34 . . 1 . 1 2 Failed 17 | . 13 . 2 . . . . . 2 . Catastrophic 2 | . . . 1 . . . . . 1 . Database Lockouts . | . . . . . . . . . . . Manual 25 | . 18 . 3 1 . . . . 3 . Terminals 23 | . 18 . 3 . . . . . 1 1 Fabricators . | . . . . . . . . . . . Repair Stations 3 | . 2 . . . . . . . . 1 Recycling Units 7 | . 5 . . . . . . . 2 . Scanalyzers . | . . . . . . . . . . . Garrison Access . | . . . . . . . . . . . Terminal Hacks 56 | . 4 5 11 34 . . 1 . . 1 Record 40 | . . 4 9 27 . . . . . . Robot Analysis 6 | . 1 . . 5 . . . . . . Open Door 2 | . . . . 1 . . 1 . . . Terminal Index 1 | . 1 . . . . . . . . . Alert Level 1 | . . . 1 . . . . . . . Locate Traps 2 | . 2 . . . . . . . . . Registered Components 1 | . . . . . . . . . . 1 Derelict Proto ID Bank 2 | . . 1 . 1 . . . . . . Release Object 1 | . . . 1 . . . . . . . Fabricator Hacks . | . . . . . . . . . . . Repair Station Hacks 3 | . 2 . . . . . . . . 1 Scan Component 2 | . 1 . . . . . . . . 1 Repair 1 | . 1 . . . . . . . . . Recycling Unit Hacks . | . . . . . . . . . . . Scanalyzer . | . . . . . . . . . . . Garrison Access Hacks . | . . . . . . . . . . . Unauthorized Hacks 7 | . 6 . . . . . . . 1 . Terminals 5 | . 5 . . . . . . . . . Botnet 5 | . 5 . . . . . . . . . Fabricators . | . . . . . . . . . . . Repair Stations 1 | . . . . . . . . . 1 . Recycling Units 1 | . 1 . . . . . . . . . Mask 1 | . 1 . . . . . . . . . Fedlink 1 | . . . . . . . . . 1 . Scanalyzers . | . . . . . . . . . . . Garrison Access . | . . . . . . . . . . . Data Cores Recovered . | . . . . . . . . . . . Used . | . . . . . . . . . . . Hacking Detections 13 | . 7 . 3 . . . . . 1 2 Full Trace Events 2 | . 2 . . . . . . . . . Feedback Events . | . . . . . . . . . . . Feedback Blocked . | . . . . . . . . . . . Robot Schematics Acquired . | . . . . . . . . . . . Robots Built . | . . . . . . . . . . . Authchips . | . . . . . . . . . . . Time . | . . . . . . . . . . . Total Robot Build Rating . | . . . . . . . . . . . Part Schematics Acquired . | . . . . . . . . . . . Parts Built . | . . . . . . . . . . . Authchips . | . . . . . . . . . . . Time . | . . . . . . . . . . . Total Part Build Rating . | . . . . . . . . . . . Parts Repaired 1 | . 1 . . . . . . . . . Time 38 | . 38 . . . . . . . . . Parts Recycled . | . . . . . . . . . . . Recycled Matter . | . . . . . . . . . . . Retrieved Matter . | . . . . . . . . . . . Retrieved Components . | . . . . . . . . . . . Parts Scanalyzed . | . . . . . . . . . . . Part Schematics Acquired . | . . . . . . . . . . . Parts Damaged . | . . . . . . . . . . . Bothacking | -11 -10 -10 -7 -7 -5 -5 -5 -4 -4 -3 ------------ Run | Yrd Mat Sub Rec Scr Fac Upp War Pro Fac Res Used RIF Installer . | . . . . . . . . . . . Robots Hacked . | . . . . . . . . . . . Non-combat . | . . . . . . . . . . . Combat . | . . . . . . . . . . . Robot Hacks Applied . | . . . . . . . . . . . Relay Couplers Released . | . . . . . . . . . . . Fabnet Peak Effective % . | . . . . . . . . . . . Robots Rewired 5 | . . . 5 . . . . . . . Allies Hacked . | . . . . . . . . . . . Hacks Repelled . | . . . . . . . . . . . Allies | -11 -10 -10 -7 -7 -5 -5 -5 -4 -4 -3 -------- Run | Yrd Mat Sub Rec Scr Fac Upp War Pro Fac Res Total Allies 5 | . . . 5 . . . . . . . Largest Group 5 | . . . 5 5 5 . . . . . Highest-Rated Group 130 | . . . 130 130 130 . . . . . Highest-Rated Ally 40 | . . . 40 40 40 . . . . . Total Orders . | . . . . . . . . . . . Ally Attacks 15 | . . . . . 15 . . . . . Total Damage 443 | . . . . . 443 . . . . . Kills 4 | . . . . . 4 . . . . . Allies Corrupted . | . . . . . . . . . . . Allies Melted . | . . . . . . . . . . . Intel | -11 -10 -10 -7 -7 -5 -5 -5 -4 -4 -3 ------- Run | Yrd Mat Sub Rec Scr Fac Upp War Pro Fac Res Robot Analysis Total 6 | . 1 . . 5 . . . . . . Derelict Logs Recovered 3 | . . 2 . . . . . 1 . . Drone Launches . | . . . . . . . . . . . Drone Recoveries . | . . . . . . . . . . . Exploration | -11 -10 -10 -7 -7 -5 -5 -5 -4 -4 -3 ------------- Run | Yrd Mat Sub Rec Scr Fac Upp War Pro Fac Res Turns Passed 9710 | 68 1296 1519 1043 2030 600 197 1431 430 781 315 Spaces Moved 7994 | 56 1166 1523 866 1988 401 186 1044 240 411 113 Core 9 | 7 2 . . . . . . . . . Treads 1021 | . . . . . . . 257 240 411 113 Legs . | . . . . . . . . . . . Wheels 6361 | 49 874 1210 866 1988 401 186 787 . . . Hover . | . . . . . . . . . . . Flight 603 | . 290 313 . . . . . . . . Fastest Speed 40 | 50 40 40 90 90 105 105 105 160 160 160 Average Speed 102 | 79 80 81 90 98 105 105 118 160 175 238 Slowest Speed 240 | 100 200 100 90 105 105 105 160 160 240 240 Overloaded Moves . | . . . . . . . . . . . Propulsion Burnouts . | . . . . . . . . . . . Robots Hopped 5 | . 1 4 . . . . . . . . Cave-ins Triggered . | . . . . . . . . . . . Exploration Rate (%) 50 | 3 100 61 96 96 12 32 92 41 14 3 Regions Visited 10 Branch Regions 6 Pre-discovered Areas 1 | . . . . . . . . 1 . . Known Exits Taken 9 | . 1 1 1 1 1 1 1 1 1 . Unknown Exits Taken 1 | 1 . . . . . . . . . . Scrap Searched 11 | . . 3 . 6 . . . 2 . . Spaces Dug 23 | . . 2 . . 4 . 14 . 3 . Terrain Destroyed 157 | . . 3 3 . 117 . 27 1 5 1 Melee 5 | . . . . . 3 . 1 . 1 . Projectile 41 | . . 3 3 . 14 . 15 1 4 1 AOE 111 | . . . . . 100 . 11 . . . Terrain Rammed . | . . . . . . . . . . . Walls Destroyed . | . . . . . . . . . . . Machines Disabled . | . . . . . . . . . . . Actions | -11 -10 -10 -7 -7 -5 -5 -5 -4 -4 -3 --------- Run | Yrd Mat Sub Rec Scr Fac Upp War Pro Fac Res Total 9102 | 68 1414 1699 1098 2059 520 187 1186 271 460 140 Wait 450 | . 133 77 110 47 21 2 27 3 25 5 Move 7975 | 55 1163 1515 865 1987 400 185 1043 239 410 113 Hop 4 | . 1 3 . . . . . . . . Pick Up 26 | 3 5 3 2 3 . . 4 . 4 2 Fast Attach 49 | 6 16 4 4 7 3 . 7 1 . 1 Attach 8 | . 2 2 1 . . . . . 1 2 Detach 12 | . 3 2 1 . . . 4 . 1 1 Swap 16 | . 2 2 1 3 2 . 5 . . 1 Drop 54 | . 14 8 3 12 1 . 13 . 2 1 Fire 295 | 4 56 67 29 . 54 . 64 3 14 4 Melee 31 | . . . . . 9 . 1 9 2 10 Ram 2 | . . . 2 . . . . . . . Kick . | . . . . . . . . . . . Crush . | . . . . . . . . . . . Escape Stasis . | . . . . . . . . . . . Rewire 66 | . . . 66 . . . . . . . Trap . | . . . . . . . . . . . Miscellaneous 114 | . 19 16 14 . 30 . 18 16 1 . Route ------- -11/Scrapyard -10/Materials (discovered 6 exits: [*Mat x3] / *Min x2 / *Sub) -10/Subcaves (discovered 3 exits: Mat x2 / *Rec) -7/Recycling (discovered 2 exits: *Fac / *Scr) -7/Scraptown (discovered 2 exits: *Fac x2) -5/Factory -5/Upper Caves -5/Warlord -4/Proximity Caves -4/Factory -3/Research History --------- Turn | Location | Event 2 | -11/Scrapyard | Upgraded with Utility slot (x1) 2 | -11/Scrapyard | Upgraded with Weapon slot (x1) 5 | -11/Scrapyard | Discovered new exit (range 16) 69 | -11/Scrapyard | Entered Materials 142 | -10/Materials | Discovered new exit (range 14) 303 | -10/Materials | Build established: Mutant 305 | -10/Materials | Discovered new exit (range 4) 356 | -10/Materials | Discovered new exit (range 8) 519 | -10/Materials | Discovered new exit (range 16) 732 | -10/Materials | Discovered new exit (range 16) 759 | -10/Materials | Reached level 2 834 | -10/Materials | Upgraded with Weapon slot (x1) 1062 | -10/Materials | Discovered new exit (range 6) 1261 | -10/Materials | Identified exit to Mines 1320 | -10/Materials | Repaired Lgt. Nuclear Core 1364 | -10/Materials | Identified exit to Subcaves 1365 | -10/Materials | Entered Subcaves 1374 | -10/Subcaves | Discovered new exit (range 13) 1378 | -10/Subcaves | A swath of the cavern ceiling suddenly collapsed 1454 | -10/Subcaves | Shifting Twisted Machinery released Sub. Laser 1555 | -10/Subcaves | Visited 4L-MR0's lab 1578 | -10/Subcaves | Shifting Twisted Machinery released Battle Rifle 1925 | -10/Subcaves | Found Powered Cannon 1926 | -10/Subcaves | Attached Powered Cannon, gained temporary slot: Power 1996 | -10/Subcaves | Build established: Tank 2006 | -10/Subcaves | Reached level 3 2016 | -10/Subcaves | Upgraded with Propulsion slot (x1) 2021 | -10/Subcaves | Identified exit to Recycling 2264 | -10/Subcaves | Visited Clippyterm 2267 | -10/Subcaves | Identified exit to Materials 2323 | -10/Subcaves | Shifting Twisted Machinery released Mak. Hacking Suite 2329 | -10/Subcaves | Shifting Twisted Machinery released Sub. Machine Gun 2759 | -10/Subcaves | Core integrity fell below 50% 2884 | -10/Subcaves | Entered Recycling 2885 | -7/Recycling | Met a Zionite searching for Scraptown 3003 | -7/Recycling | Discovered new exit (range 9) 3010 | -7/Recycling | Identified exit to Factory 3075 | -7/Recycling | Scanned before Scraplab entrance 3090 | -7/Recycling | Entered Scraplab 3103 | -7/Recycling | Discovered new exit (range 3) 3103 | -7/Recycling | Identified exit to Scraptown 3219 | -7/Recycling | Build established: Scavenger-Gunner 3235 | -7/Recycling | Reached level 4 3417 | -7/Recycling | Upgraded with Utility slot (x2) 3837 | -7/Recycling | Build established: Commander-Tank 3927 | -7/Recycling | Entered Scraptown 3927 | -7/Scraptown | Accompanied by 5 allies 4253 | -7/Scraptown | Discovered exit to Factory (range 5) 4361 | -7/Scraptown | Visited Shadow of the Wyrm 4379 | -7/Scraptown | Visited Spacefarers 4489 | -7/Scraptown | Visited SPCMW 4509 | -7/Scraptown | Visited Comm Corps 4714 | -7/Scraptown | Visited UFD Registry 4722 | -7/Scraptown | Visited Artisan Demo Area 4776 | -7/Scraptown | Registered with UFD as "Pipeninja" 4788 | -7/Scraptown | Visited The Evicted 4867 | -7/Scraptown | Visited CPS Storage 4922 | -7/Scraptown | Visited Junk Repository 4965 | -7/Scraptown | Visited Infowarlord's Domain 4990 | -7/Scraptown | Visited Scrap Suit Storage 5193 | -7/Scraptown | Visited Abandonware Association 5209 | -7/Scraptown | Learned abandonware demo "ERRANTS.EXE" 5209 | -7/Scraptown | Learned abandonware demo "POISON.EXE" 5231 | -7/Scraptown | Visited Analyses Database 5254 | -7/Scraptown | Visited Botcube Research 5262 | -7/Scraptown | Found Botcube 5282 | -7/Scraptown | Visited Curators Association 5376 | -7/Scraptown | Visited Sword Containment 5412 | -7/Scraptown | Visited Derelict Rescue Squad 5441 | -7/Scraptown | Visited Science Guys 5583 | -7/Scraptown | Discovered exit to Factory (range 3) 5719 | -7/Scraptown | Found Exp. Sensor Array 5930 | -7/Scraptown | Build established: Commander-Mutant 5957 | -7/Scraptown | Entered Factory 5957 | -5/Factory | Accompanied by 5 allies 5959 | -5/Factory | Reached level 5 5966 | -5/Factory | Upgraded with Utility slot (x1) 5989 | -5/Factory | Reached level 6 6022 | -5/Factory | Lost 3 allies 6236 | -5/Factory | Reached level 7 6253 | -5/Factory | Core integrity fell below 50% 6280 | -5/Factory | Build established: Mutant 6282 | -5/Factory | Destroyed 10 combat bots 6307 | -5/Factory | Reached level 8 6343 | -5/Factory | Destroyed 8 combat bots 6508 | -5/Factory | Discovered new exit (range 13) 6521 | -5/Factory | Identified exit to Upper Caves 6557 | -5/Factory | First assault squad dispatched 6557 | -5/Factory | Entered Upper Caves 6559 | -5/Upper Caves | Reached level 9 6701 | -5/Upper Caves | A Derelict revealed a hidden shortcut to "reach the base" 6705 | -5/Upper Caves | Identified exit to Warlord 6754 | -5/Upper Caves | Entered Warlord 6791 | -5/Warlord | System corruption cleaned by Quarantine Array 7244 | -5/Warlord | Visited the Vortex Lab 7246 | -5/Warlord | Warlord's base attacked by MAIN.C 7257 | -5/Warlord | Met EX-DEC 7324 | -5/Warlord | Rebuked by Warlord 7414 | -5/Warlord | Spotted B-86 Titan 7427 | -5/Warlord | Destroyed B-86 Titan 7427 | -5/Warlord | Reached level 10 7561 | -5/Warlord | Warlord forces counterattacked 7588 | -5/Warlord | Spotted Striker 7606 | -5/Warlord | Spotted Striker 7612 | -5/Warlord | Destroyed Striker 7630 | -5/Warlord | Reached level 11 7677 | -5/Warlord | Spotted B-86 Titan 7690 | -5/Warlord | Spotted Striker 7742 | -5/Warlord | Lost 28 allies 7917 | -5/Warlord | Spotted Striker 7921 | -5/Warlord | Warlord base infiltrated, sounded retreat 7969 | -5/Warlord | Lost 8 allies 8016 | -5/Warlord | Found Prototype Energy Cannon 8169 | -5/Warlord | Discovered new exit (range 10) 8183 | -5/Warlord | Identified exit to Proximity Caves 8185 | -5/Warlord | Entered Proximity Caves 8187 | -4/Proximity Caves | Reached level 12 8237 | -4/Proximity Caves | Upgraded with Weapon slot (x1) 8273 | -4/Proximity Caves | Learned location of Quarantine (-3) 8490 | -4/Proximity Caves | Spotted B-86 Titan 8504 | -4/Proximity Caves | Destroyed B-86 Titan 8530 | -4/Proximity Caves | Build established: Gladiator 8593 | -4/Proximity Caves | Discovered new exit (range 14) 8610 | -4/Proximity Caves | Ambushed by research squad 8613 | -4/Proximity Caves | Identified exit to Factory 8615 | -4/Proximity Caves | Entered Factory 8617 | -4/Factory | Reached level 13 8839 | -4/Factory | Core integrity fell below 50% 9185 | -4/Factory | Reached level 14 9201 | -4/Factory | Upgraded with Weapon slot (x2) 9202 | -4/Factory | Identified BFG-9k Vortex Edition 9361 | -4/Factory | Discovered new exit (range 9) 9382 | -4/Factory | Identified exit to Research 9396 | -4/Factory | Entered Research 9397 | -3/Research | Core integrity fell below 50% 9398 | -3/Research | Reached level 15 9413 | -3/Research | Upgraded with Power slot (x1) 9688 | -3/Research | Core integrity fell below 20% 9712 | -3/Research | Core destroyed Last Messages --------------- 09699_ Destroyed Hvy. Machine Gun. 09699_ Destroyed Xenon Bombardment Thruster. 09699_ S-43 Plague destroyed. 09703_ S-43 Plague suffers critical hit (Sunder). 09703_ S-43 Plague Hvy. Machine Gun ripped off. 09703_ S-43 Plague Xenon Bombardment Thruster ripped off. 09703_ S-43 Plague destroyed. 09704_ Power failure, Particle Reactor shutdown. 09705_ Overheating: Particle Reactor damaged (-40). 09705_ Overheating: Adv. Signal Interpreter damaged (-8). 09705_ S-43 Plague suffers critical hit (Sunder). 09705_ S-43 Plague Xenon Bombardment Thruster ripped off. 09705_ S-43 Plague destroyed. 09707_ Overheating: Exp. Sensor Array damaged (-7). 09709_ Power failure, Neutrino Core shutdown. 09711_ Overheating: Hrd. Heavy Armor Plating damaged (-138). 09711_ Overheating: Particle Reactor damaged (-26). 09711_ Overheating: Adv. Signal Interpreter damaged (-1). 09711_ Overheating: Energy Well damaged (-56). 09712_ Overheating: Core damaged (-153). Map ----- +----------------------------------------------------+ | ?????????????????????????????????????????????????? | | ?????????????????????????????????????????????????? | | ?????????????????????????????????????????????????? | | ?????????????????????????????????????????????????? | | ????????????????????????????????????????????? ?? | | ????????????????????????????????????????????? ? | | ????????????????????????????????????????????? ! ? | | ????????????????????????????????????????????? ? | | ????????????????????????????????????????????? ? | | ?????????????????????????????##########??+??? | | ???????????????????########### #?? ??? "" | | ???????????????????# # #?? ??? "" | | ???????????????????# # #?# #?? "" | | ???????????????????# # #?# #?# "" | | ???????????????????# "" # +? #?# | | ???????????????????# S"" # #?# #?# | | ???????????????????# "" # !#?# #?# | | ???????????????????# ! # #?# #?# "" | | ???????????????????# # #?# #?# "" | | ????????????????########+######+######### ### "" | | ????????????????# "" | | ????????????????# | | ????????????????# | | ????????????????#s [%== | | ????????????????# ####/[################## # | | ????????????????# # =@% # # # | | ????????????????# # # ! # # | | ????????????????###### """"" # + + | | ?????????????????????# """T"" # % # # | | ?????????????????????# "" # # + | | ?????????????????????# # " "" + # | | ?????????????????????# # "R"" # # | | ?????????????????????# # = """ # # | | ?????????????????????# = ########### # | | ?????????????????????# % #?????????# # | | ?????????????????????# ########### # | | ?????????????????????# + # | | ?????????????????????############################# | | ?????????????????????????????????????????????????? | | ?????????????????????????????????????????????????? | | ?????????????????????????????????????????????????? | | | | | | | | | | | | | | | | | | | +----------------------------------------------------+ Best States ------------- Heat Dissipation 77 Energy Generation 52 Energy Capacity 1005 Matter Stores 350 Matter Capacity 350 Sight Range 20 Robot Scan Range 20 Terrain Scan Range 16 Terrain Scan Density 10 Armor Coverage 1200 Resistance: TH 5 Evasion (%) 62 Targeting Accuracy 5 Melee Accuracy 6 Target Analysis 8 Recoil Reduction 2 Item Schematics ----------------- None Robot Schematics ------------------ None Fabricated ------------ Nothing Alien Tech Used ----------------- None Achievements -------------- None Challenges ------------ None RPGLIKE | -11 -10 -10 -7 -7 -5 -5 -5 -4 -4 -3 --------- Run | Yrd Mat Sub Rec Scr Fac Upp War Pro Fac Res Levels Raised 14 | . 1 1 1 . 4 1 2 1 2 1 XP Earned 25473 | 3000 1775 1400 1845 650 6078 500 3905 1300 2425 2595 XP Spent 23935 | 2900 1600 500 2400 . 6075 . 4050 1100 3100 2210 Upgrades 48 | 6 9 1 3 . 16 . 4 1 2 6 Power Slot 1 | . . . . . . . . . . 1 Propulsion Slot 1 | . . 1 . . . . . . . . Utility Slot 4 | 1 . . 2 . 1 . . . . . Weapon Slot 5 | 1 1 . . . . . . 1 2 . Core Integrity 6 | . . . . . 6 . . . . . Heat Dissipation 8 | . 5 . . . . . . . . 3 Energy Generation 3 | . . . . . 3 . . . . . Energy Storage 2 | . . . . . 2 . . . . . Matter Storage 1 | . . . . . 1 . . . . . Mass Support 1 | . 1 . . . . . . . . . Inventory Capacity 6 | 3 . . . . . . 3 . . . Sight Range 4 | . 1 . . . . . 1 . . 2 Ranged Accuracy 5 | 1 . . 1 . 3 . . . . . TH Resistance % 1 | . 1 . . . . . . . . . Protomatter Created 1082 | . 177 69 117 . 253 . 341 118 7 . Integrity Restored 2430 | . 344 336 312 . 652 . 411 354 21 . Core 2372 | . 315 336 312 . 623 . 411 354 21 . Parts 58 | . 29 . . . 29 . . . . . Protomatter Decayed 1104 | . 60 85 13 . 39 . 907 . . . Game ------ Seed ArmorAuthchipBank Manual? 0 Play Time 02:16:57 Cumulative 238.0 hours Start 2024.08.08 @ 07:32:19 End 2024.08.09 @ 08:13:18 Sessions 5 Manual Loads 0 Difficulty Rogue Special Mode Winter2019/RPGLIKE Game No. 67 Rogue 62 Adventurer 4 Explorer 1 Win Type - Total 5 Types 1/0/1/2/0/0/0/0/1 Lore% 40 Gallery% 65 Achievement% 44 Wizard Run 0 Options --------- Layout 0 ASCII 0 Keyboard 0 Movement Mouse Keybinds 0 Fullscreen 1 Font 24/Smallcaps Map View 76x50 Zoom Use 0% Tactical HUD 1 Map Filters NONE Filters NONE Steam X RUN: 8cc9a4eb-5a1e-4881-9e2c-753c5e43c7c8